{"text_format":"3","workbook":"xlsx","n_sheets":25,"sheets":["作るべき仕組み","LINE公式","いわゆるLINE自動化","分岐","分岐(合流)","10ステップ","10ステップ拡張","10ステップ更に拡張","プロライン全自動１","プロライン全自動２","プロライン全自動３(理想形)","全パターン","ステップアップシート","ループシナリオの使い方","友だち追加ビラ","来店型無限クーポン","大阪王将提案書","大阪王将設計図","クーポン追加A4ビラ(汎用)","クーポン追加A4ビラ(赤)","コンテンツ締切日","シナリオ設計ひな形","コンテンツ配布戦略シート","記入例①(モラハラ)","記入例②(ずーみーさん)"],"not_rendered":{"images":59},"read":"whole","date_system":"1900"}

{"sheet":"作るべき仕組み","index":0,"n_rows":195,"n_cols":66,"rows_kept":195,"merged":[[1,0,1,9],[2,0,2,9],[3,0,3,9],[3,30,3,58],[4,0,4,9],[4,30,4,58],[6,0,102,0],[6,1,38,1],[6,9,6,10],[6,13,6,14],[7,9,28,10],[7,19,31,19],[10,17,24,17],[14,4,18,6],[16,13,16,14],[18,13,18,14],[20,13,20,14],[21,13,21,14],[23,13,23,14],[24,13,24,14],[29,3,37,3],[29,7,37,7],[29,9,37,10],[29,13,37,14],[39,1,73,1],[39,9,39,10],[39,13,39,14],[40,13,40,14],[40,19,64,19],[41,13,41,14],[42,17,56,17],[46,13,46,14],[47,4,51,6],[48,13,48,14],[49,13,49,14],[54,9,56,10],[55,13,55,14],[62,3,70,3],[62,7,70,7],[62,9,70,10],[62,13,71,14],[74,1,102,1],[74,9,74,10],[74,13,74,14],[75,13,75,14],[75,19,99,19],[76,13,76,14],[76,17,95,17],[81,13,81,14],[82,4,86,6],[83,13,83,14],[84,13,84,14],[89,9,91,10],[90,13,90,14],[97,3,102,3],[97,7,102,7],[97,9,102,10],[97,13,102,14],[104,0,204,0],[104,1,134,1],[104,10,104,13],[105,19,127,19],[112,4,116,6],[120,10,120,13],[122,10,122,13],[127,3,132,3],[127,7,132,7],[127,10,132,13],[127,17,132,17],[135,1,163,1],[135,9,135,10],[135,13,135,14],[135,21,135,22],[136,23,157,23],[136,25,157,25],[143,4,147,6],[143,15,147,16],[149,9,154,10],[150,13,151,14],[151,19,153,19],[152,13,154,14],[158,3,163,3],[158,7,163,7],[158,9,163,10],[158,13,163,14],[158,17,163,17],[158,19,163,19],[158,21,163,21],[171,1,204,1],[171,9,171,10],[171,13,171,14],[171,29,171,31],[171,33,171,35],[171,37,171,39],[171,41,171,43],[171,45,171,47],[171,49,171,51],[171,53,171,55],[171,57,171,59],[171,61,171,63],[171,65,171,67],[172,27,199,27],[172,29,204,31],[172,33,204,35],[172,37,204,39],[172,41,204,43],[172,45,204,47],[172,49,204,51],[172,53,204,55],[172,57,204,59],[172,61,204,63],[172,65,204,67],[179,4,183,6],[179,15,183,16],[185,9,190,10],[186,13,187,14],[186,21,188,21],[188,13,190,14],[188,23,189,23],[189,21,190,21],[194,3,204,3],[194,7,204,7],[194,9,204,10],[194,13,204,14],[194,17,204,17],[194,19,204,19],[194,21,204,21],[194,23,204,23],[194,25,204,25]]}
[" "]
["あなたは、"]
["『プロライン全自動』を作るべきです！"]
["仕組みの概要を示します。詳細は０章－４と０章－５動画を必ず見てください。"]
["※シナリオ側の仕組みは、『プロライン全自動１』～『プロライン全自動３』シート参照。店舗系は『来店型無限クーポン配布』シート参照。"]
[]
["基本\n※まずこちら","プロライン全自動\n１\nのイメージ\n\n※プロプラン",null,"動画１",{"$nulls":3},"動画２",null,"動画３",{"$nulls":3},"オファー動画＆\n予約or申込ボタン",{"$nulls":3},"特長",null,"Zoomセミナーをやる場合の例"]
[{"$nulls":19},"（１）コンサル/セミナーを行う\n（２）その最後に「今からここまで視聴してくださった方に講座の案内がありますが、興味が無ければここで退出してください」と伝えるとたいてい残ってくれる　※トークの中で自然な形でセールスに入れるならここは不要\n（３）その下準備を経て講座の「内容説明」と「価値の説明と価格の説得」をする\n（４）購入意思を示した人の問題（支払い問題、嫁さんの問題等）を解決してあげて成約\n※低単価の場合（３）（４）は不要"]
[]
[]
[{"$nulls":17},"コンテンツ合計４つ\n\n予約シナリオがないので、オファーのところに\nフォームを埋め込むか、フォーム送信後チャットで予約日時を手動で決めなければならない。"]
{"$rows_empty":9}
[{"$nulls":13},"希望日時"]
[]
[]
[{"$nulls":13},"電話番号"]
[]
[]
[]
[]
[]
[{"$nulls":3},"●最初の動画は特に絶対、「プロラインプレイヤー」を使います。\n●動画を一定時間以上再生しないと次に進めないようにします（動画の長さの５０％か６６％）。\n●フォームは、最初は「５段階評価」または「見ました！チェックボックス」＋送信ボタンにします。",{"$nulls":3},"●２つ目以降の動画は、５段階評価＋コメント（任意）が基本です。\n●コメント欄のタイトルに（任意項目）にして、行数はプレッシャーを感じさせないように、２行にしましょう。",null,"●３つ目以降のコンテンツであれば、「５段階評価＋感想（必須）」にしてもいいですが、感想を必須にするかは反応率を見ながら。感想必須だと動画を見ないとコメント書けず進めないので教育が確実になる、顧客理解が進むが、ハードルが高く進捗が悪くなる危険性もあります。\nコメント欄の必須化は、動画３つ目以降がいいでしょう。",{"$nulls":3},"●あくまでも、セミナー最後の章としてコンテンツとして見せて配る。次の特典として、コンサル受講特典を示す。\n以下のうち、やれることをやれば参加率UP\n（１）コンサル受講完了でプレゼントを渡すことにする（面談完了特典。申込特典があっても良い）\n（２）チャットで連絡以外に、フォームで電話番号を取って以下のリマインドをしても良い\n●申し込んだ人には翌日までにできたら電話かけてお礼を伝える。出ないならCMS送る\n●面談前日にもリマインドで電話かける。出ないならCMS送る\n以上でドタキャン率が最低になる"]
{"$rows_empty":9}
[null,"プロライン全自動\n２\nのイメージ\n\n※プロプラン",null,"動画１",{"$nulls":3},"動画２",null,"オファー動画",{"$nulls":3},"「スケジュール/\nイベント予約▼」機能でカレンダーを作成",{"$nulls":3},"特長",null,"Zoomセミナーをやる場合の例"]
[{"$nulls":13},"予約について",{"$nulls":5},"（１）コンサル/セミナーを行う\n（２）その最後に「今からここまで視聴してくださった方に講座の案内がありますが、興味が無ければここで退出してください」と伝えるとたいてい残ってくれる　※トークの中で自然な形でセールスに入れるならここは不要\n（３）その下準備を経て講座の「内容説明」と「価値の説明と価格の説得」をする\n（４）購入意思を示した人の問題（支払い問題、嫁さんの問題等）を解決してあげて成約\n※低単価の場合（３）（４）は不要"]
[{"$nulls":13},"希望日時"]
[{"$nulls":17},"コンテンツ合計３つ\n＋予約シナリオ\n\n予約シナリオ（１日締切）で申し込みシナリオを分離して、自動化ができる"]
[]
[]
[]
[{"$nulls":13},"電話番号"]
[]
[{"$nulls":13},"備考"]
[]
[]
[]
[]
[]
[{"$nulls":9},"☑動画の内容を確認し、\n無料面談に申し込みます"]
[{"$nulls":13},"予約に関して質問はコチラ!"]
[]
[]
[]
[]
[]
[]
[{"$nulls":3},"●最初の動画は特に絶対、「プロラインプレイヤー」を使います。\n●動画を一定時間以上再生しないと次に進めないようにします（動画の長さの５０％か６６％）。\n●フォームは、最初は「５段階評価」または「見ました！チェックボックス」＋送信ボタンにします。",{"$nulls":3},"●２つ目以降の動画は、５段階評価＋コメント（任意）が基本です。\n●コメント欄のタイトルに（任意項目）にして、行数はプレッシャーを感じさせないように、２行にしましょう。\n●感想欄を必須にしたい気持ちは理解できます。が、まだ２つ目なので慎重にいきましょう。感想欄を必須にすると進捗が落ちるかもしれないからです。動画見るのと感想を書く労力は別物ですので。",null,"●あくまでも、セミナー最後の章としてコンテンツとして見せて配る。視聴特典として、コンサル受講特典を示す。\n●次に進めるにあたり、コメント欄を設けると進捗が悪くなるので、ここはチェックボックス＋送信ボタンのみというスタイルが基本です。",{"$nulls":3},"以下のうち、やれることをやれば参加率UP\n（１）コンサル受講完了でプレゼントを渡すことにする（面談完了特典。申込特典があっても良い）\n（２）「スケジュール/イベント予約▼」でカレンダーを作成し、予約リマインダー設定でリマインドまたはチャットで連絡以外に、フォームで電話番号を取って以下のリマインドをしても良い\n●申し込んだ人には翌日までにできたら電話かけてお礼を伝える。出ないならCMS送る\n●面談前日にもリマインドで電話かける。出ないならCMS送る\n以上でドタキャン率が最低になる"]
{"$rows_empty":11}
[null,"Zoomセミナー誘導の\n最強形！\n\nプロライン全自動\n３\nのイメージ\n\n※ゴールドプラン",null,"動画１",{"$nulls":3},"動画N",null,"オファー動画",{"$nulls":3},"「スケジュール/\nイベント予約▼」機能でカレンダーを作成",{"$nulls":3},"特長",null,"Zoomセミナーをやる場合の例"]
[{"$nulls":19},"（１）コンサル/セミナーを行う\n（２）その最後に「今からここまで視聴してくださった方に講座の案内がありますが、興味が無ければここで退出してください」と伝えるとたいてい残ってくれる　※トークの中で自然な形でセールスに入れるならここは不要\n（３）その下準備を経て講座の「内容説明」と「価値の説明と価格の説得」をする\n（４）購入意思を示した人の問題（支払い問題、嫁さんの問題等）を解決してあげて成約\n※低単価の場合（３）（４）は不要"]
[{"$nulls":17},"コンテンツ作り放題\n＋「スケジュール/\nイベント予約▼」機能\n\n予約シナリオ（１日締切）で申し込みシナリオを分離。\n「スケジュール/イベント予約▼」機能にて予約カレンダーを作成。予約リマインダーメッセージを編集（Zoomリンク設定等）し稼働中にすることで、予約者のLINEに通知される。"]
[]
[]
[]
[]
[]
[{"$nulls":4},"・・・"]
[]
[]
[]
[]
[]
[]
[{"$nulls":9},"☑動画の内容を確認し、\n無料面談に申し込みます"]
{"$rows_empty":7}
[{"$nulls":3},"●最初の動画は特に絶対、「プロラインプレイヤー」を使います。\n●動画を一定時間以上再生しないと次に進めないようにします（動画の長さの５０％か６６％）。\n●フォームは、最初は「５段階評価」または「見ました！チェックボックス」＋送信ボタンにします。",{"$nulls":3},"●２つ目以降の動画は、５段階評価＋コメント（任意）が基本です。\n●コメント欄のタイトルに（任意項目）にして、行数はプレッシャーを感じさせないように、２行にしましょう。\n●３つ目以降のコンテンツであれば、「５段階評価＋感想（必須）」にしてもいいですが、感想を必須にするかは反応率を見ながら。感想必須だと動画を見ないとコメント書けず進めないので教育が確実になる、顧客理解が進むが、ハードルが高く進捗が悪くなる危険性もあります。\nコメント欄の必須化は、動画３つ目以降がいいでしょう。",null,"●あくまでも、セミナー最後の章としてコンテンツとして見せて配る。視聴特典として、コンサル受講特典を示す。\n●次に進めるにあたり、コメント欄を設けると進捗が悪くなるので、ここはチェックボックス＋送信ボタンのみというスタイルが基本です。",{"$nulls":3},"以下のうち、やれることをやれば参加率UP\n（１）コンサル受講完了でプレゼントを渡すことにする（面談完了特典。申込特典があっても良い）\n（２）フォームで電話番号を取り、LINEリマインド以外にできたら以下のリマインド\n●申し込んだ人には翌日までにできたら電話かけてお礼を伝える。出ないならCMS送る\n●面談前日にもリマインドで電話かける。出ないならCMS送る\n以上でドタキャン率が最低になる"]
[]
[]
[]
[]
[]
[]
["応用\n※売れてから","コンテンツの直接販売なら・・・\n\nコンテンツ直接販売\n全自動化形\nのイメージ\n\n※これで半年で5000万円売れているので、信用を蓄積できるならこれでも売れます。\n\n※今まで面談で売ってきたものを急に全自動化しようとすると、思ったより売れないことが多いので要注意。原因は動画→動画→・・と来て急に文字で売り込んでいるから。対策は１つ下の「最強形」だが、少しは売れているなら２つ下の「最終形」もあり。",null,"動画１",{"$nulls":3},"動画N",null,null,"オファー\n(セールスレター)\n※箇条書きがオススメ！",{"$nulls":6},"決済ページ",null,"特長"]
[{"$nulls":17},"お申込内容",null,"従来のコンテンツ販売の常識を覆し、３倍売れるようにした新時代の形。\n面談なしで直接コンテンツを売り捌くスタイル。全てを自動化できる。\nこれが達成できたら全てが自動化・労力ほぼ０で年収数千万・億超えも可能。\n他ツールではまず不可能な成約率を見込める。\n【事例】犬飼ターボさんがCPホームタディコース・２０万円を、半年ほどで累積4000万円販売。"]
[]
[]
[]
[]
[]
[]
[{"$nulls":4},"・・・"]
[]
[]
[{"$nulls":17},"お支払いはこちら！"]
[]
[]
[]
[]
[{"$nulls":10},"☑購入を申し込む",{"$nulls":6},"ご質問はこちら！"]
[]
[{"$nulls":10},"※まだ確定ではありません。"]
[]
[]
[]
[]
[{"$nulls":3},"●最初の動画は特に絶対、「プロラインプレイヤー」を使います。\n●動画を一定時間以上再生しないと次に進めないようにします（動画の長さの５０％か６６％）。\n●フォームは、最初は「５段階評価」または「見ました！チェックボックス」＋送信ボタンにします。",{"$nulls":3},"●２つ目以降の動画は、５段階評価＋コメント（任意）が基本です。\n●コメント欄のタイトルに（任意項目）にして、行数はプレッシャーを感じさせないように、２行にしましょう。\n●３つ目以降のコンテンツであれば、「５段階評価＋感想（必須）」にしてもいいですが、感想を必須にするかは反応率を見ながら。感想必須だと動画を見ないとコメント書けず進めないので教育が確実になる、顧客理解が進むが、ハードルが高く進捗が悪くなる危険性もあります。\nコメント欄の必須化は、動画３つ目以降がいいでしょう。",null,null,"・箇条書き形式もオススメ\n・動画Nは、商品を解説（レターを読上げた）動画でも良い",{"$nulls":6},"例えば・・・\n（１）期限は１日後の２４時でも良い。事情があればフォームに書けば延長を個別に受け付けるが、返信には●営業日かかると添える\n（２）ご質問フォームを埋め込んで銀行振り込みや期限延長に個別対応しても良い\n※ご質問フォームはなくてもいいですが、カードトラブルや銀行振込したい人が少し漏れます。"]
{"$rows_empty":7}
[null,"Zoomコンサルを自動化するならまずこちら！\n\nコンテンツ直接販売\n「最強形」\nのイメージ\n\nプロライン全自動を応用\n（読み上げ動画を\n挟む形）\n\n※Zoom面談で売れているのを自動化するならこのスタイルで。",null,"動画１",{"$nulls":3},"動画N－１",null,"動画N\n定価X万円のZoom有料セミナーの無料ご案内",{"$nulls":3},"元々Zoomでやっていたセミナー１",{"$nulls":3},"元々ZoomでやっていたセミナーN",null,"オファー動画\n(無料コンサル)",null,"「スケジュール/\nイベント予約▼」機能でカレンダーを作成",null,"特長",null,"オンラインコンサルから成約の流れの例"]
[{"$nulls":23},"続・面談で売っていくスタイル\nプロライン全自動３＋Zoomセミナーや無料相談の内容を共通化したものを見せる。\n最後に、価値あるコンサルやセッションとして予約してもらう。そこで特典も渡す。\nコンサル終えたらセールスして成約する。\n【事例】救命士学習塾のアッキーさんがクロージング以外全自動化で安定的に月収300万突破。",null,"（１）コンサル最初の１時間で、Zoomセミナーの内容を復習し定着させてあげ満足させる\n（２）コンサルの最後に「今からここまで来てくださった方に講座の案内がありますが、興味が無ければここで退出してください」と伝えるとたいてい残ってくれる\n（３）その下準備を経て講座の「内容説明」と「価値の説明と価格の説得」をする\n（４）購入意思を示した人の問題（支払い問題、嫁さんの問題等）を解決してあげて成約"]
[]
[]
[]
[]
[]
[]
[{"$nulls":4},"・・・",{"$nulls":10},"・・・"]
[]
[]
[]
[]
[]
[{"$nulls":9},"☑動画の内容を確認しました。通常X万円の続編セミナーを無料で送ってください"]
[]
[{"$nulls":19},"☑動画の内容を確認し、\n無料面談に申し込みます"]
[]
[]
[]
[]
[]
[]
[{"$nulls":3},"●最初の動画は特に絶対、「プロラインプレイヤー」を使います。\n●動画を一定時間以上再生しないと次に進めないようにします（動画の長さの５０％か６６％）。\n●フォームは、最初は「５段階評価」または「見ました！チェックボックス」＋送信ボタンにします。",{"$nulls":3},"●２つ目以降の動画は、５段階評価＋コメント（任意）が基本です。\n●コメント欄のタイトルに（任意項目）にして、行数はプレッシャーを感じさせないように、２行にしましょう。\n●３つ目以降のコンテンツであれば、「５段階評価＋感想（必須）」にしてもいいですが、感想を必須にするかは反応率を見ながら。感想必須だと動画を見ないとコメント書けず進めないので教育が確実になる、顧客理解が進むが、ハードルが高く進捗が悪くなる危険性もあります。\nコメント欄の必須化は、動画３つ目以降がいいでしょう。",null,"●配るのが当たり前であれば、このステップは飛ばしてもいい\n●あくまでも、セミナー最後の章としてコンテンツとして見せて配る。オファーの部分を、「この後にセミナーで見せます」という感じ。\nまた、元々最初のセミナーとZoomセミナーが両方セットで１つのセミナーということならば、この予告は不要。\n●次に進めるにあたり、コメント欄を設けると進捗が悪くなるので、ここはチェックボックス＋送信ボタンのみというスタイルが基本です。",{"$nulls":3},"●オンラインZoomセミナーをぶつ切りにしたもの、または撮り下ろし映像を追加します。",{"$nulls":3},"●オンラインZoomセミナーをぶつ切りにしたもの、または撮り下ろし映像を追加します。",null,"あくまでも、Zoomセミナー最後の章としてコンテンツとして見せて配る。視聴特典として、コンサル受講特典を示す。",null,"以下のうち、やれることをやれば参加率UP\n（１）コンサル受講完了でプレゼントを渡すことにする（面談完了特典。申込特典があっても良い）\n（２）フォームで電話番号を取り、LINEリマインド以外にできたら以下のリマインド\n●申し込んだ人には翌日までにできたら電話かけてお礼を伝える。出ないならCMS送る\n●面談前日にもリマインドで電話かける。出ないならCMS送る\n以上でドタキャン率が最低になる"]
{"$rows_empty":12}
[null,"更に自動化するなら！\nコンテンツ直接販売\n「最終形」\nのイメージ\n\nプロライン全自動を応用\n（読み上げ動画を\n挟む形）\n\n※上の最強形を更に一歩進めて、自動化する。\n※面談部分を慎重に自動化してきた感じですが、最初から「全自動化形」で売れるならそちらでもいいです。文章・動画・オンラインで信用を得られるなら「全自動化形」、面談が得意ならプロライン全自動３→最強形で売りながら最終形を検討する。面談無いと売れないなら無理に全自動化しなくてもいいです。",null,"動画１",{"$nulls":3},"動画N",null,"動画N\n定価X万円のZoom有料セミナーの無料ご案内",{"$nulls":3},"元々Zoomでやっていたセミナー１",{"$nulls":3},"元々ZoomでやっていたセミナーN－２",null,"ZoomセミナーN-1\n(講座の説明動画１)\n（企画発表→内容紹介→価格の100倍の価値を提示し、次回動画で価格発表を予告）",null,"ZoomセミナーN\n(講座の説明動画２)\n（人生価値100倍→10倍の商品価値→商品価格発表）\n＋次に進むボタン",null,"最終章\nセールスレター箇条書き\n(講座の説明動画1・2入り)\n＋申込ボタン\n※レターを長くしないこと！",null,"決済ページ",null,"特長",null,"書き下ろし！利益最大化を達成するための\n「文字セミナー」\n【第１回】",{"$nulls":3},"書き下ろし！利益最大化を達成するための\n「文字セミナー」\n【第２回】",{"$nulls":3},"書き下ろし！利益最大化を達成するための\n「文字セミナー」\n【第３回】",{"$nulls":3},"書き下ろし！利益最大化を達成するための\n「文字セミナー」\n【第４回】",{"$nulls":3},"書き下ろし！利益最大化を達成するための\n「文字セミナー」\n【第５回】",{"$nulls":3},"書き下ろし！利益最大化を達成するための\n「文字セミナー」\n【第６回】",{"$nulls":3},"書き下ろし！利益最大化を達成するための\n「文字セミナー」\n【第７回】",{"$nulls":3},"書き下ろし！利益最大化を達成するための\n「文字セミナー」\n【第８回】",{"$nulls":3},"書き下ろし！利益最大化を達成するための\n「文字セミナー」\n【第９回】",{"$nulls":3},"書き下ろし！利益最大化を達成するための\n「文字セミナー」\n【第10回】"]
[{"$nulls":25},"お申込内容",null,"面談で売っていくスタイルを遂に全自動化\n上記のクロージングも含めて全てを自動化するスタイル。動画で説明→コンテンツページやセールスレターで成約する。動画でどれだけ信用を蓄積でき、Q&A等で疑問を解消できるかがカギ。長いレターを読ませるのは大変であり、一つずつ情報を伝えていく必要がある。上記のアッキーさんがこのスタイルをいずれ確立する可能性はありますが、いずれにせよ講座に入る際に面談は必須らしいので自動化する気が多分そもそも無いです。というか、面談が得意で文字での説得が不向きということで面談続けるそうです。それで月収５００万狙うとのこと。",null,"セールスレターをどう読ませて次に進ませるか？\n\n「スマホ時代、LINEで誘導したレターが読まれない？！」「最後まで進むけど売れない？！」の対策ですが、まず、売れない原因は信用が無いこと（何故かPCだと怪しくないものがスマホだとより怪しく感じる）です。信用があれば読まれるし売れます。\n\nだからLINEセールスではまずZoomや電話に持ち込むというノウハウになっていると思いますが、背景はこういうことです。\n\nパソコン時代の遺産で「レター配って売れ」みたいノウハウをメインで教育してる人は生徒の結果が出ていないはず。\n\n尚、メールでは売れるか？！ということですが、そもそもリストが取れない（LINEの半分未満）ですし、メールが読まれないので、リストを取るならLINE一択です。\n\nまた、数年前までは３０代以下はLINE、４０代以上はメールの方が売れるという時代がありましたが、今は６０代以上の方も含めて全てLINEの方が優れています。",{"$nulls":3},"レターが「読まれない」「信用なくて売れない」の対策\n\n●１つはターボさんのように動画＋箇条書きレター。ターボさんの場合は動画７分＋短めのレター。本も出してるし母体がセンターピースというリアルセミナーなので信用がある。\n\n●一方情報商材屋みたいにみなされる場合でコンテンツ配っていたら最後まで取りに来るが、途端に最後のレターを見なくなるパターンもありますが、面談なら圧倒的な信用を勝ち取る場合が多々あります。\n\n●怪しく感じてたけど、話してみたらいい人！と。そのくらいネットの自動化は「怪しいけどとりあえず行動はする」感じですが、結局売れるなら何でもいいし、怪しさ≠詐欺で、別に恨まれている訳ではないので、次に進んでくれるなら途中の興味性はあるということでそれを温めていけば最終的には圧倒的に売れますし最初に怪しさが払拭できないことがあったとしても、それは別に仕方のないことですし成果が出ない訳ではないのでそのまま進めましょう。\n\n●また、「興味・メリットがないものは怪しくならない」が定義なので、興味性がないが怪しくないより興味性はあるが怪しい方がいいです。大事なのは顧客に興味を持たれることで、それさえあれば誠実に価値貢献すれば成約まで持っていくことが可能だからです。",{"$nulls":3},"怪しさの払拭にこだわり過ぎなくても良い人生にはなる（商品が怪しまれていると悩む方へ）\n\n怪しさの払拭＝大物とのコラボや名誉？違う事業？できる対策で効果があるものは、とりあえずするとして・・・\n\n●反応が取れているのであれば、怪しさの払拭にこだわりすぎなくていいです。お金を稼ぎだすと「健全だけど儲からないボランティア」に手を出して、儲からなくてモチベーション失う例が多くありますが、今の商売で人に迷惑をかけてない、むしろ顧客に貢献できているのであれば、顧客を大事にすれば良く、奥さん（旦那さん）も友だちも顧客も、そして実はあなたも、健全な商売をあなたが始めることによって実は誰も直接得はしないからです。\n\n●お金を払ってくれる方と身近な人を大事にすれば、外面の怪しさを別に気にしなければそれで沖縄旅行とか行きながら顧客にも価値貢献してプライベートでも幸せになれます。あとの外野は気にしない人生。怪しくない＝何の変哲もない普通の商品、ということなので。\n\n●また怪しい方がライバルが参入しにくいというのもあります。「健全で分かりやすいもの」は誰でもやりたいので。YouTuberとか(健全かは人により意見が分かれるかもしれませんが課金ポイントはYouTube広告なので、まぁ健全です)。",{"$nulls":3},"プロライン全自動は模倣が少なく、競争優位性と持続力が凄い\n\n●プロライン全自動マーケティングは、LPやブログだけ見たらその奥にある仕組みに気づけないので、非常に真似されにくくニッチな競争優位性を築けるのも実は強みです。\n\n●尚、友だち価値(売上÷友だち追加数＝商品単価×成約率)が5000円超えると一生食うに困らないスキルと向こう少なくとも何年も食べられるビジネス、１万円超えると最低８年以上のロングセラーと生涯年収以上稼ぐことも可能な仕組みとなるでしょう（経験上）。\n私は８年以上のロングセラー商品で１３億以上売ってきましたし、他の例でもそうでした。商品では、４０００人を超える顧客に感謝されています（クレームもほぼ無く、到達を約束した成果の未達率も１％未満）。\nつまり「顧客の幸福」と「事業の利益」の２つに注目し、「自分が飽きた」「怪しいから次は健全」「社会的地位が欲しい」はビジネス以外の部分で達成が良いと思います。\n\n筋トレとか美容とか家族とか、時間と労力を使うべき対象は他にいます。そしてお金と時間さえあればビジネスが多少怪しくても自分の人生はどうにか（圧倒的に良い方向に）なります。",{"$nulls":3},"課金ポイント１個タイプで、別事業に手を出すと、全体の結果が劣化する。あくまでも、その仕組み「１つだけ」の所有にこだわり、その他の事業に「手を出さないこと」が発展のポイント\n\n●厳密に言うとプロライン全自動マーケティングは「課金ポイント１個タイプ」と言って、スティーブ・ジョブズと同じで「自分の仕組み１つを所有し、仕組みを経営する」という発想で、全てを顧客リストとLTV（友だちあたり単価）で考えます。「違う人との違う事業」は時間が分散し、常にマイナスです。「ビジネスモデルタイプ」という、特定の手法を色んなビジネスに横展開する人の方が世の中には多いので、安易なコラボ話で自分の仕組み以外のものに手を出さないよう注意しましょう。その人が思っているよりあなたの仕組みは複雑で、また、労力がかかるので、違う仕組みをもう１つ作って所有して経営したり直接経営に関われるほど構築に時間がかからないものではありません。「１つ所有して数字を管理するのがイチバン」です。間違えないように！！\n\n●良く自己啓発セミナーで言われる「行動しよう」「新しいことを始めよう」というのは課金ポイント作成に着手するという行動力を発揮した時点でマイナスになります。あとは粘り強くやり遂げるだけで、啓発もしなくて良いし人付き合いも減らして仕組み作りと仕組み経営に集中した人が勝ちます。あと仕組み理解が無い人と会話しても理解してもらえないので時間が取られるかモチベーションが下がるだけです。年配の名経営者は組織マネジメントタイプが多く、そのような方はネットとかITを否定するか理解できないです。",{"$nulls":3},"参考）経営者６タイプとは？！\n\n●経営者６タイプとは、（紙に６角形を書いた時、左上の頂点から反時計回りに）組織マネジメントタイプ→ビジネスモデルタイプ→課金ポイント１個タイプ→保護産業・寡占タイプ→財テク（資産最適化）タイプ→オペレーションマネジメントタイプ（→組織マネジメントタイプ）　のように６つタイプがあります。　隣り合うタイプは中間が存在し、また遷移します。６角形を構成した際に反対のビジネスから学ぶことがあります。詳細は経営セミナーになりますが次世代起業家育成セミナーをゴールドプラン年間契約にセットで付ける予定なので興味があれば、ゴールド年間を買ってください。\nこの話に興味が持つ人で、次世代起業家のコンテンツセットを買って満足しない人は存在しないと思っております。\n\n●参考２）Apple創業者のスティーブ・ジョブズは課金ポイント１個タイプ、後継者の経営者のティム・クックは財テク（資産最適化）タイプになります。\n\nスティーブ・ジョブズ（こだわりが強く、iPhoneは小さいディスプレイのみ[片手で操作できない]、タッチペンの厳禁化[タッチペンを失くす]、少ない製品[強みへの集中、ハードを作って出荷して売るという課金ポイント１個へのこだわり]という方針）が作った基本方程式を資産再配置（アセットアロケーション）して、サイズを変えたりタッチペンを付けたり、同じ技術で別製品作ったり、課金ポイント増やしたりして最適化して時価総額を上げたのが後継者のティム・クック。",{"$nulls":3},"レターが見られない場合の対策の続き\n\n■（１）レターの中に多数の動画を散りばめておいて、締切を２週間とし、１週間は動画見放題！どうぞ！とレターに誘導して買うこともできる。１週間したら動画を削除して通常の１週間セールスで決断させる。\n\n■（２）レターの内容をそもそも予め動画で読み上げるか、独白型（ホワイトボード型）かPPTセミナー風に解説しておいて、レターで詳細という形で今までの動画（特にレター内容解説動画を最初に配置。そして今まで配った動画をレター内に配置しても良い。ただスマホなので情報量どこまで増やすかは臨機応変に）をレター内に配置することで、レターは「詳細」であり、内容は予め動画で興味付けられた状態にする。\n\n■（３）（１）と（２）の両方を使う（動画でオファー＋詳細という形にするが、新規プレゼントもレター内に１つか２つ、入っていて、場合によってもっと入ってる場合は１週間はレター内のコンテンツ見放題！で見させて残り１週間で決断させる）",{"$nulls":3},"顧客を次に進めるのに、大事な発想\n\n大事な発想は、「プレゼントを受け取る過程で教育されている」ことで、「受け取るのを止めたら損する」「確認しないと損する」で、できれば「チェックボックスにチェック付けてボタン押さないと大きなチャンスがパアで、損する」とまで思わせて、自分でも良く分からないけど気が付いたら送信しており、最後の期限が来たのでお支払いするという感じ。\n\n●尚、最後の決済ページのオファーはあくまでも「決済させること」であるので、「ご質問を送らせること」を行動として指示してはいけません。\n\n●同様の間違いで、月収300万円の方でも同様の間違いを一度やってしまっていましたが、「最後のレターの申込みボタンの下に、『迷ったら電話ください！』と電話番号書いたらいいですよ」というアドバイスに対して「購入前に電話してください！」と実際にレターに書いてしまったこと（この場合の正解は、「疑問があれば電話で答えます！気軽にかけて！」という感じ）。レターの目的が「決済させること」であるなら「購入前に必ず電話ください！」はマイナスになります。それであれば、「電話してください！」というオファーを決済の前の段階で挟むべきで、メインの目的をゴリ押しするのではなく、サブ目的をメインみたいにプッシュしてもうまくいきません。",{"$nulls":3},"１つのシナリオ内に２つの行動指示を入れると失敗する\n\n●間違いの例\n\n「（セールスレターで）決済してもいいけど、問い合わせまずはしてください（問い合わせる前に決済させていい）」\n\n「申し込んでもいいけど、決断できなければ延長もあります（実際は延長ステップの存在を締切前に言ってはいけません。良くある間違い！）」\n\n「決済の前に電話してください（電話せず決済がメインのはず）」\n\nという感じで、これはメインの目的じゃないものをプッシュしていることになるので顧客の逃げを生みますし、売れません。\n\n●尚、以下の程度でしたら、大丈夫です。\nメインの行動指示[動画見ろ]＋どうしても●●ならXX[例：質問があればこっち]",{"$nulls":3},"DRMにおけるファネル[ろうと]の設計の基本\n\n基本＝「やるか、去るか」「買うか、去るか」のような「行動するか、離脱するか」の決断を、決断なるべく少なく次に進めること。\n\n具体的なポイントは\n「期限」「メリット」\nがあり、\n「行動するリスクが少ない」「アクションすべき内容が明確であること」\nです。\n\n●あと、決断をさせるステップを挟むと反応率が下がるので、決断はなるべく後のステップでさせるようにしてください。価格発表を最後の動画やセミナーでやるのはそういう理由です。人は価格を聞いたら決断してそこで進むか進まなくなるかハッキリしてしまうので、セールスする前に買うかどうかを決断させるような状態にならないように。価格発表は下準備してから最後に。で、決断も迫ってください。「買うか、去るか」で堂々とクロージングしましょう。「今予約しないで後で予約も全然OKです」なら本来予約してた人も逃げます。まずは自分が決めた期限で堂々と締め切ります。\n●尚、セールスの最終日に売上の半分が集中します。それほどまでに、人は、締め切りが無いと決断しません。"]
[]
[]
[]
[{"$nulls":23},"講座説明動画１"]
[]
[]
[{"$nulls":4},"・・・",{"$nulls":10},"・・・"]
[]
[{"$nulls":23},"講座説明動画２"]
[{"$nulls":25},"お支払いはこちら！"]
[]
[]
[{"$nulls":9},"☑動画の内容を確認しました。通常X万円の続編セミナーを無料で送ってください"]
[{"$nulls":21},"☑動画を確認したので、次に進む",null,"内容・価格・支払い方法・Q&Aなど"]
[{"$nulls":23},"・・・・・・・・・・・・・・・・・・・",null,"ご質問はこちら！"]
[{"$nulls":23},"☑購入を申し込む"]
[{"$nulls":21},"※購入の意思表明ではありません。"]
[{"$nulls":23},"※まだ確定ではありません。"]
[]
[]
[]
[{"$nulls":3},"●最初の動画は特に絶対、「プロラインプレイヤー」を使います。\n●動画を一定時間以上再生しないと次に進めないようにします（動画の長さの５０％か６６％）。\n●フォームは、最初は「５段階評価」または「見ました！チェックボックス」＋送信ボタンにします。",{"$nulls":3},"●２つ目以降の動画は、５段階評価＋コメント（任意）が基本です。\n●コメント欄のタイトルに（任意項目）にして、行数はプレッシャーを感じさせないように、２行にしましょう。\n●３つ目以降のコンテンツであれば、「５段階評価＋感想（必須）」にしてもいいですが、感想を必須にするかは反応率を見ながら。感想必須だと動画を見ないとコメント書けず進めないので教育が確実になる、顧客理解が進むが、ハードルが高く進捗が悪くなる危険性もあります。\nコメント欄の必須化は、動画３つ目以降がいいでしょう。",null,"●配るのが当たり前であれば、このステップは飛ばしてもいい\n●あくまでも、セミナー最後の章としてコンテンツとして見せて配る。オファーの部分を、「この後にセミナーで見せます」という感じ。\nまた、元々最初のセミナーとZoomセミナーが両方セットで１つのセミナーということならば、この予告は不要。\n●次に進めるにあたり、コメント欄を設けると進捗が悪くなるので、ここはチェックボックス＋送信ボタンのみというスタイルが基本です。",{"$nulls":3},"●オンラインZoomセミナーをぶつ切りにしたもの、または撮り下ろし映像を追加します。",{"$nulls":3},"●オンラインZoomセミナーをぶつ切りにしたもの、または撮り下ろし映像を追加します。",null,"※あくまでも、セミナー最後の章としてコンテンツとして見せて配る。視聴特典として、コンサル受講特典を示す。\n※講座の説明動画は、セールスレターを読み上げたものでも、そうでなくても構いません。",null,"※あくまでも、セミナー最後の章としてコンテンツとして見せて配る。視聴特典として、コンサル受講特典を示す。\n※次に進んで当たり前感が大事です。「確認したら次に進んでください」という感じ。\n※価格発表部分は工夫を凝らして、価値を伝えたところから下げていってください。",null,"※セールスレターは、従来の長いものが読まれにくくなっていることもあり、「短くて箇条書き」でも良いです。\n※次に進んで当たり前感も大事です。「あなたのやることは、●日以内に内容を確認し、納得したらレターの中のチェックボックスを付けて、送信することです。悔いのないように時間を使って下さい。等",null,"例えば・・・\n（１）期限は１日後の２４時でも良い。事情があればフォームに書けば延長を個別に受け付けるが、返信には●営業日かかると添える\n（２）ご質問フォームを埋め込んで銀行振り込みや期限延長に個別対応しても良い\n※ご質問フォームはなくてもいいですが、カードトラブルや銀行振込したい人が少し漏れます。"]

{"sheet":"LINE公式","index":1,"n_rows":4,"n_cols":8,"rows_kept":4,"merged":[[3,1,6,1],[3,3,6,3],[3,5,6,5],[3,7,6,7],[3,9,6,9],[8,9,8,10],[8,11,8,13]]}
[]
[null,"●通常のLINE公式アカウント"]
[]
[null,"ブログ",null,"各種SNS\n\n※Facebook,\nTwitter,Instagram,YouTube等",null,"口コミ／\n紹介",null,"店頭／\nビラ"]

{"sheet":"いわゆるLINE自動化","index":2,"n_rows":4,"n_cols":17,"rows_kept":4,"merged":[[3,1,6,7],[3,10,6,10],[3,12,6,12],[3,14,6,14],[3,16,6,16],[3,18,6,18],[9,18,9,19]]}
[]
[{"$nulls":10},"●通常のLINE自動化マーケティング"]
[]
[null,"プロライン連携前から\n友だち追加済みの人",{"$nulls":8},"ブログ",null,"各種SNS\n\n※Facebook,\nTwitter,Instagram,YouTube等",null,"口コミ／\n紹介",null,"店頭／\nビラ"]

{"sheet":"分岐","index":3,"n_rows":4,"n_cols":17,"rows_kept":4,"merged":[[3,1,6,7],[3,10,6,10],[3,12,6,12],[3,14,6,14],[3,16,6,16],[3,18,6,18],[3,20,6,20],[3,22,6,22],[3,24,6,24],[3,26,6,26],[3,28,6,28],[3,30,6,30],[3,32,6,32],[3,34,6,34],[3,36,6,36],[3,38,6,38]]}
[]
[{"$nulls":10},"●分岐＋ステップ配信"]
[]
[null,"プロライン連携前から\n友だち追加済みの人",{"$nulls":8},"ブログ",null,"各種SNS\n\n※Facebook,\nTwitter,Instagram,YouTube等",null,"口コミ／\n紹介",null,"店頭／\nビラ"]

{"sheet":"分岐(合流)","index":4,"n_rows":4,"n_cols":17,"rows_kept":4,"merged":[[3,1,6,7],[3,10,6,10],[3,12,6,12],[3,14,6,14],[3,16,6,16],[3,18,6,18],[3,20,6,20],[3,22,6,22],[3,24,6,24],[3,26,6,26],[3,28,6,28],[3,30,6,30],[3,32,6,32],[3,34,6,34],[3,36,6,36],[3,38,6,38]]}
[]
[{"$nulls":10},"●分岐＋ステップ配信"]
[]
[null,"プロライン連携前から\n友だち追加済みの人",{"$nulls":8},"ブログ",null,"各種SNS\n\n※Facebook,\nTwitter,Instagram,YouTube等",null,"口コミ／\n紹介",null,"店頭／\nビラ"]

{"sheet":"10ステップ","index":5,"n_rows":4,"n_cols":34,"rows_kept":4,"merged":[[3,1,6,7],[3,10,6,10],[3,12,6,12],[3,14,6,14],[3,16,6,16],[3,18,6,18],[3,20,6,20],[3,22,6,22],[3,24,6,24],[3,26,6,26],[3,28,6,28],[10,18,10,19]]}
[]
[{"$nulls":10},"●フリープラン10ステップ"]
[{"$nulls":33},"."]
[null,"プロライン連携前から\n友だち追加済みの人",{"$nulls":8},"ブログ",null,"各種SNS\n\n※Facebook,\nTwitter,Instagram,YouTube等",null,"口コミ／\n紹介",null,"店頭／\nビラ"]

{"sheet":"10ステップ拡張","index":6,"n_rows":4,"n_cols":17,"rows_kept":4,"merged":[[3,1,6,7],[3,10,6,10],[3,12,6,12],[3,14,6,14],[3,16,6,16],[3,18,6,18],[3,20,6,20],[3,22,6,22],[3,24,6,24],[3,26,6,26],[3,28,6,28]]}
[]
[{"$nulls":10},"●10ステップ→２日締切+先頭に戻すを利用"]
[]
[null,"プロライン連携前から\n友だち追加済みの人",{"$nulls":8},"ブログ",null,"各種SNS\n\n※Facebook,\nTwitter,Instagram,YouTube等",null,"口コミ／\n紹介",null,"店頭／\nビラ"]

{"sheet":"10ステップ更に拡張","index":7,"n_rows":4,"n_cols":17,"rows_kept":4,"merged":[[3,1,6,7],[3,10,6,10],[3,12,6,12],[3,14,6,14],[3,16,6,16],[3,18,6,18],[3,20,6,20],[3,22,6,22],[3,24,6,24],[3,26,6,26],[3,28,6,28],[3,30,6,30]]}
[]
[{"$nulls":10},"●２日間締切+プロダクトロンチ基本"]
[]
[null,"プロライン連携前から\n友だち追加済みの人",{"$nulls":8},"ブログ",null,"各種SNS\n\n※Facebook,\nTwitter,Instagram,YouTube等",null,"口コミ／\n紹介",null,"店頭／\nビラ"]

{"sheet":"プロライン全自動１","index":8,"n_rows":10,"n_cols":47,"rows_kept":10,"merged":[[1,1,1,25],[2,1,2,27],[3,29,3,49],[4,29,4,49],[5,1,5,27],[5,29,5,49],[9,1,12,7],[9,10,12,10],[9,12,12,12],[9,14,12,14],[9,16,12,16],[9,18,12,18],[9,54,12,54],[9,56,12,56],[9,58,12,58],[9,60,12,60],[9,62,12,62]]}
[]
[null,"●コンテンツ３つ＋オファー",{"$nulls":44},"."]
[null,"『プロライン全自動１』作り方＋コンテンツタイトル付け方動画マニュアルはコチラ!"]
[{"$nulls":29},"※『プロライン全自動１』の作り方＋コンテンツタイトル付け方ですが、"]
[{"$nulls":29},"２や３もこの映像の応用で作れると思います！まずはこのURLで作ってから、"]
[null,"https://autosns.co.jp/manual/application/method/fullauto_1",{"$nulls":27},"セミナー映像●０－５[後編１]～●０－５[後編３]を見ると完全に理解できるはずです。"]
[]
[{"$nulls":10},"●コンテンツ３つ＋オファー"]
[]
[null,"プロライン連携前から\n友だち追加済みの人",{"$nulls":8},"ブログ",null,"各種SNS\n\n※Facebook,\nTwitter,Instagram,YouTube等",null,"口コミ／\n紹介",null,"店頭／\nビラ"]

{"sheet":"プロライン全自動２","index":9,"n_rows":10,"n_cols":47,"rows_kept":10,"merged":[[1,1,1,25],[2,1,2,27],[3,29,3,49],[4,29,4,49],[5,1,5,27],[5,29,5,49],[9,1,12,7],[9,10,12,10],[9,12,12,12],[9,14,12,14],[9,16,12,16],[9,18,12,18],[9,54,12,54],[9,56,12,56],[9,58,12,58],[9,60,12,60]]}
[]
[null,"●コンテンツ２つ＋オファー＋予約/購入",{"$nulls":44},"."]
[null,"『プロライン全自動１』作り方＋コンテンツタイトル付け方動画マニュアルはコチラ!"]
[{"$nulls":29},"※『プロライン全自動１』の作り方＋コンテンツタイトル付け方ですが、"]
[{"$nulls":29},"２や３もこの映像の応用で作れると思います！まずはこのURLで作ってから、"]
[null,"https://autosns.co.jp/manual/application/method/fullauto_1",{"$nulls":27},"セミナー映像●０－５[後編１]～●０－５[後編３]を見ると完全に理解できるはずです。"]
[]
[{"$nulls":10},"●コンテンツ２つ＋オファー＋予約/購入"]
[]
[null,"プロライン連携前から\n友だち追加済みの人",{"$nulls":8},"ブログ",null,"各種SNS\n\n※Facebook,\nTwitter,Instagram,YouTube等",null,"口コミ／\n紹介",null,"店頭／\nビラ"]

{"sheet":"プロライン全自動３(理想形)","index":10,"n_rows":10,"n_cols":47,"rows_kept":10,"merged":[[1,1,1,25],[2,1,2,27],[3,29,3,49],[4,29,4,49],[5,1,5,27],[5,29,5,49],[9,1,12,7],[9,10,12,10],[9,12,12,12],[9,14,12,14],[9,16,12,16],[9,18,12,18],[9,65,12,65],[9,67,12,67],[9,69,12,69],[9,71,12,71],[9,74,12,74],[9,76,12,76],[9,78,12,78],[9,80,12,80]]}
[]
[null,"●コンテンツ３つ＋オファー＋予約＋リマインド",{"$nulls":44},"."]
[null,"『プロライン全自動１』作り方＋コンテンツタイトル付け方動画マニュアルはコチラ!"]
[{"$nulls":29},"※『プロライン全自動１』の作り方＋コンテンツタイトル付け方ですが、"]
[{"$nulls":29},"２や３もこの映像の応用で作れると思います！まずはこのURLで作ってから、"]
[null,"https://autosns.co.jp/manual/application/method/fullauto_1",{"$nulls":27},"セミナー映像●０－５[後編１]～●０－５[後編３]を見ると完全に理解できるはずです。"]
[]
[{"$nulls":10},"●コンテンツ３つ＋オファー＋予約＋リマインド"]
[]
[null,"プロライン連携前から\n友だち追加済みの人",{"$nulls":8},"ブログ",null,"各種SNS\n\n※Facebook,\nTwitter,Instagram,YouTube等",null,"口コミ／\n紹介",null,"店頭／\nビラ"]

{"sheet":"全パターン","index":11,"n_rows":65,"n_cols":14,"rows_kept":65,"merged":[[1,1,1,5],[3,1,6,1],[3,3,6,3],[3,5,6,5],[3,7,6,7],[3,9,6,9],[8,9,8,10],[8,11,8,13],[13,1,13,5],[14,1,14,5],[15,1,18,1],[15,3,18,3],[15,5,18,5],[15,7,18,7],[15,9,18,9],[20,9,20,10],[20,11,20,13],[24,1,24,8],[25,1,28,1],[25,3,28,3],[25,5,28,5],[25,7,28,7],[25,9,28,9],[25,11,28,11],[30,9,30,10],[30,11,30,13],[35,1,35,7],[36,1,36,10],[37,1,40,1],[37,3,40,3],[37,5,40,5],[37,7,40,7],[37,9,40,9],[37,11,40,11],[37,13,40,13],[44,1,44,5],[45,1,45,13],[46,1,49,1],[46,3,49,3],[46,5,49,5],[46,7,49,7],[46,9,49,9],[46,11,49,11],[46,13,49,13],[53,1,56,1],[53,3,56,3],[53,5,56,5],[53,7,56,7],[53,9,56,9],[53,11,56,11],[53,13,56,13],[60,1,63,1],[60,3,63,3],[60,5,63,5],[60,7,63,7]]}
[]
[null,"●パターン０：練習(フリープラン10ステップ)"]
[]
[null,"メイン\nシナリオ\n15分",null,"既に友だち追加済みの人",null,"感想くれた人\n30分"]
[]
[]
[]
[null,"7s",null,"1s",null,"2s"]
[]
[]
[]
[]
[]
[null,"●パターン１：無料相談(50ステップくらい)"]
[null,"※『プロライン全自動１』の場合"]
[null,"動画１\n見てね\n15分",null,"動画２\n見てね\n30分",null,"動画３\n見てね\n30分",null,"動画４\n(オファー)\n見てね",null,"予約してね\n※手動対応"]
[]
[]
[]
[null,"11s",null,"11s",null,"11s",null,"17s",null,"0s"]
[]
[]
[]
[]
[null,"※『プロライン全自動２』(『プロライン全自動３』)の場合"]
[null,"動画１\n見てね\n15分",null,"動画２\n見てね\n30分",null,"動画３\n(ｵﾌｧ-)\n見てね\n30～60分",null,"予約してね\n※1日締切",null,"予約ありがとう",null,"場合によってここにリマインド"]
[]
[]
[]
[null,"11s",null,"11s",null,"17s",null,"10s",null,"1～2s",null,"※プロライン全自動３"]
[]
[]
[]
[]
[]
[null,"●パターン２：いきなりコンテンツ販売(80～150ステップくらい)"]
[null,"※『プロライン全自動１』や『プロライン全自動２』の動画数を増やしたもの。"]
[null,"序章\n15分",null,"１章\n30分",null,"２章\n30分",null,"３章\n30分",null,"４章\n30分",null,"セールス\nシナリオ\nまたは\n５章(オファー)",null,"買った人"]
[]
[]
[]
[null,"11s～",null,"11s～",null,"11s～",null,"11s～",null,"11s～",null,"11s～30s",null,"1～50s"]
[null,"※ループ付けても良い"]
[]
[null,"●パターン３：無料体験（＋フルオート提供）"]
[null,"※『レベルアップ』シートのレベル６に対応するもの。加藤コンテンツ累積13億円売った仕組み。"]
[null,"序章\n15分",null,"１章\n30分",null,"２章\n30分",null,"３章\n30分",null,"・・・",null,"４～20章\nオファー\n30～60分",null,"場合によってここでZOOM予約を取って体験中に実施"]
[]
[]
[]
[null,"11s～",null,"11s～",null,"11s～",null,"11s～",{"$nulls":3},"17s"]
[]
[]
[null,"体験動画\n１",null,"体験動画\n２",null,"体験動画\n３",null,"・・・",null,"体験動画\n４～15",null,"決済案内",null,"またはここでZOOM面談でクロージング"]
[]
[]
[]
[null,"11s～",null,"11s～",null,"11s～",{"$nulls":3},"11s～",null,"30s？"]
[]
[]
[null,"買った人\nフォロー\n１",null,"買った人\nフォロー\n２",null,"買った人\nフォロー\n３",null,"・・・"]
[]
[]
[]
[null,"11s～",null,"11s～",null,"11s～"]

{"sheet":"ステップアップシート","index":12,"n_rows":34,"n_cols":8,"rows_kept":34,"merged":[[0,1,0,7],[1,2,1,4],[1,5,1,6],[4,5,4,6],[8,2,9,2],[10,2,10,3],[11,2,15,2],[11,3,15,3],[11,4,15,4],[17,2,21,2],[17,3,21,3],[17,4,21,4],[17,5,21,5],[17,6,21,6],[25,1,30,2],[25,3,27,4],[25,5,25,7],[26,5,26,7],[27,5,27,7],[28,3,30,4],[28,5,28,7],[29,5,29,7],[30,5,30,7],[31,1,33,2],[31,3,33,4],[31,5,31,7],[32,5,32,7],[33,5,33,7]]}
[null,"＜コンテンツマーケ・ステップアップシート＞"]
[null,null,"※必ずレベル３以下で始め、１つ以上売れてから次に進む",null,null,"最終形としてオススメ！"]
[null,"区分→","初心者","経験者(中級者)","中上級者","上級者","全てを自動化１","全てを自動化２"]
[null,"レベル→","レベル１","レベル２","レベル３","レベル４","レベル５(コンテンツで完結)","レベル６(オンラインサロン)"]
[null,"DRMマスターエクセル→","プロライン全自動２","プロライン全自動１","プロライン全自動３","「全パターン」シートの「パターン２」。「作るべき仕組み」シートも参照",null,"「全パターン」シートの「パターン３」"]
[null,"コンテンツ１","１５分","１５分","１５分","１５分","１５分","１５分"]
[null,"コンテンツ２","３０分","３０分","３０分","３０分","３０分","３０分"]
[null,"コンテンツ３","オファー(～60分)","３０分","３０分","３０分","３０分","３０分"]
[null,"コンテンツ４",null,"オファー(～60分)","(３０分)","３０分","３０分","３０分"]
[null,"コンテンツ５",null,null,"オファー(～60分)","(続編セミナーオファー)","(続編セミナーオファー)","(続編セミナーオファー)"]
[null,"ZOOM面談","無料相談／無料面談／オンラインセミナー\n＋クロージング(商品価格１～10万円)",null,"セミナー＋クロージング(2+1時間)(10万円-)"]
[null,"コンテンツ６",{"$nulls":3},"15～30分","15～30分","15～30分"]
[null,"コンテンツ７",{"$nulls":3},"３０分","３０分","３０分"]
[null,"コンテンツ８",{"$nulls":3},"３０分","３０分","３０分"]
[null,"コンテンツ９",{"$nulls":3},"３０分","３０分","３０分"]
[null,"コンテンツ10",{"$nulls":3},"無料コンサルのオファー","講座説明や決済案内","価格提示＋お試し入会ボタン"]
[null,"ZOOM面談",{"$nulls":5},"※１ヶ月無料!! のような感じ .　"]
[null,"体験１",{"$nulls":5},"15～30分"]
[null,"体験２",{"$nulls":5},"３０分"]
[null,"体験３",{"$nulls":5},"３０分"]
[null,"体験４",{"$nulls":5},"３０分"]
[null,"体験５",{"$nulls":5},"決済を促す"]
[null,"決済","面談で案内","面談で案内","面談で案内","面談で案内","決済サイトで直接決済","決済サイトで直接決済\n※一括払or14日間無料月額,等"]
[null,"商品価格\n(目安)","１～10万円","1～10万円","10～30万円","10～30万円","10～30万円","20～100万円"]
[]
[null,"30万円を回収する\n決済ボタンパターン",null,"一括決済(15％OFF)\n※コンテンツは一括渡し",null,"カード：255000+税(280500円)／銀行振込：税込280000円"]
[{"$nulls":5},"　↑上記の「カード分割払」を用意する。例：Telecom Credit／Robot Payment／GMO"]
[{"$nulls":5},"　↑上記をPayPal等で月額払(25000円×12回課金)※キャンセルができてしまう／入金が遅い"]
[{"$nulls":3},"月額課金(退会自由)\n※但しコンテンツは支払合計額に応じて都度渡し",null,"30日無料　→　月額25000円×12回課金"]
[{"$nulls":5},"14日無料　→　月額25000円×12回課金"]
[{"$nulls":5},"無料期間なし→月額25000円×12回課金"]
[null,"継続課金",null,"月額課金\n※コンテンツをいつどれだけ見られるかは設計次第",null,"30日無料　→　月額****円"]
[{"$nulls":5},"14日無料　→　月額****円"]
[{"$nulls":5},"無料期間なし→月額****円"]

{"sheet":"ループシナリオの使い方","index":13,"n_rows":2,"n_cols":2,"rows_kept":2}
[]
[null,"●復活「ループ」シナリオテンプレートの使い方"]

{"sheet":"友だち追加ビラ","index":14,"n_rows":0,"n_cols":0,"rows_kept":0}

{"sheet":"来店型無限クーポン","index":15,"n_rows":9,"n_cols":47,"rows_kept":9,"merged":[[1,1,1,25],[2,1,2,25],[5,1,5,25],[8,1,11,7],[8,10,11,10],[8,12,11,12],[8,14,11,14],[8,16,11,16],[8,18,11,18]]}
[]
[null,"●来店型無限クーポン",{"$nulls":44},"."]
[null,"『来店型無限クーポン』作り方を動画で詳述!構築動画マニュアルはコチラ!"]
[]
[]
[null,"https://autosns.co.jp/manual/application/method/coupon_scenario"]
[]
[]
[null,"プロライン連携前から\n友だち追加済みの人",{"$nulls":8},"ブログ",null,"各種SNS\n\n※Facebook,\nTwitter,Instagram,YouTube等",null,"口コミ／\n紹介",null,"店頭／\nビラ"]

{"sheet":"大阪王将提案書","index":16,"n_rows":42,"n_cols":2,"rows_kept":42,"merged":[[0,1,0,15],[1,1,2,15],[41,1,43,4]]}
[null,"店舗名称●●●●様　ワークフロー(リピーター量産クーポン)"]
[null,"※大阪王将向けの提案に使った資料です。店舗向けの提案書等にご利用いただいても構いません。"]
{"$rows_empty":39}
[null,"※以下ループ※"]

{"sheet":"大阪王将設計図","index":17,"n_rows":121,"n_cols":12,"rows_kept":121,"merged":[[0,2,2,11],[4,1,5,10],[9,2,10,2],[9,6,11,6],[11,8,13,10],[12,2,14,2],[17,2,19,11],[21,1,23,10],[27,2,28,2],[27,6,29,6],[30,2,32,2],[34,2,36,2],[34,6,36,6],[38,2,40,2],[38,6,40,6],[40,8,42,10],[43,1,47,11],[49,1,57,10],[90,0,93,0],[101,0,104,0],[112,0,115,0],[118,6,120,8]]}
[null,null,"▼基本ループ構造(チケット利用回数考慮せず)の概念図▼\n(チケットは１種類。１回利用・２回利用をシナリオで区別しない)・・・プロプラン"]
[]
[]
[]
[null,"『来店型無限クーポン』で作成したシナリオの概念図[24s]。"]
[]
[]
[null,null,"スタート"]
[]
[null,null,"アンケート回答でクーポン進呈",null,"アンケート",null,"チケット配布・＆締切カウントダウン",null,"(0)初回クーポ",null,"利用ありがとう"]
[{"$nulls":3},"1日後","入力",{"$nulls":3},"ン利用画面",null,"また明日"]
[{"$nulls":8},"※シナリオ移動時に、▼実行条件・オプション設定▼から「□チケットを復活させる」で、配布しようとしているクーポンの利用を復活させること。"]
["３ヶ月６回",null,"期限切れ\n(定期的に再配布)",null,"クーポン請求"]
["ループ",{"$nulls":3},"ボタンを押す"]
[]
[]
[]
[null,null,"▼応用ループ構造(チケット利用回数考慮)の概念図▼\n(チケットは１種類。１回利用・２回利用・３回利用をシナリオで区別)・・・ゴールドプラン"]
[]
[]
[]
[null,"上記を拡張し、チケットの３回目までの利用率を、シナリオ移動率(シナリオに登録・解除された人数)で分析できるようにしたもの ※作業動画無し"]
[]
[]
[]
[null,null,"スタート"]
[]
[null,null,"アンケート回答でクーポン進呈",null,"アンケート",null,"１回目チケット配布＆締切カウントダウン",null,"(0)初回クーポ",null,"利用ありがとう"]
[{"$nulls":3},"1日後","入力",{"$nulls":3},"ン利用画面",null,"また明日"]
[]
["３ヶ月６回",null,"期限切れ\n(定期的に再配布)",null,"クーポン請求"]
["ループ",{"$nulls":3},"ボタンを押す"]
[]
[]
["６ヶ月12回",null,"期限切れ\n(定期的に再配布)",null,"クーポン請求",null,"２回目チケット配布＆締切カウントダウン",null,"②２回目クー",null,"利用ありがとう"]
["ループ",{"$nulls":3},"ボタンを押す",{"$nulls":3},"ポン利用画面",null,"また明日"]
[]
[]
["１年間12回",null,"期限切れ\n(定期的に再配布)",null,"クーポン請求","チケット","３回目以降チケット配布＆締切カウントダウン",null,"③３回目クー",null,"利用ありがとう"]
["ループ",{"$nulls":3},"ボタンを押す","リセット",null,null,"ポン利用画面",null,"また明日"]
[{"$nulls":8},"※シナリオ移動時に、▼実行条件・オプション設定▼から「□チケットを復活させる」で、配布しようとしているクーポンの利用を復活させること。"]
[]
[]
[null,"▼大阪王将設計図：応用ループ構造(チケット２種類＆利用回数考慮)の概念図▼\n(チケットはゴールドとシルバーの２種類。１回利用・２回利用・３回利用をシナリオで区別)・・・ゴールドプラン"]
[]
[]
[]
[]
[]
[null,"上記を更に拡張し、会員種別として、いきなりゴールド会員(200円OFF)→２週間利用がなければシルバー会員(100円OFF)→通常会員(定期的にシルバー会員を募集)の会員ランク制にしたもの。　\n※作業動画なし\n※シルバー会員は利用の翌日自動でゴールド会員に戻る。また手動でチケットを利用できるが、店の事を意識させることになるので、それでいい。"]
{"$rows_empty":31}
[null,null,"LINEをフォローするだけ！"]
[null,null,"[飲食店名]『[支店名]店』の無限クーポンゴールド会員(会費無料)募集！"]
[]
[null,null,"１．LINEをフォローすると、入会完了！"]
[null,null,"２．ゴールド会員はいつでもお会計２００円引き！"]
[null,null,"３．会費は無料！"]
[]
[null,null,"スタート"]
[null,null,"s1",null,"cp4",null,"s2",null,"tk3",null,"s3"]
["１回目利用",null,"①アンケート",null,"①アンケート",null,"①ゴールド",null,"①ゴールド",null,"①ゴールド"]
[null,null,"入力要請",null,"入力",null,"締切",null,"クーポン",null,"消費完了"]
[null,null,"s17",null,"cp12",null,"s36　　期限切れ",null,"tk4",null,"s19"]
[null,null,"①シルバー",null,"①シルバー",null,"①シルバー",null,"①シルバー",null,"①シルバー","おめでとう！"]
[null,null,"会員募集",null,"会員募集",null,"締切",null,"クーポン",null,"消費完了","ゴールド会員になったよ！"]
["6ヶ月６回",{"$nulls":9},"1回目来店回数"]
["ループ",null,"s16",null,"s16ループ制限リセット"]
[null,null,"①シルバー"]
[null,null,"会員募集待機"]
[]
[{"$nulls":6},"s33",null,"tk5",null,"s6"]
["２回目利用",{"$nulls":5},"②ゴールド",null,"②ゴールド",null,"②ゴールド"]
[{"$nulls":6},"締切",null,"クーポン画面",null,"消費完了"]
[null,null,"s20",null,"cp16",null,"s22　　期限切れ",null,"tk6",null,"s21"]
[null,null,"②シルバー",null,"②シルバー",null,"②シルバー",null,"②シルバー",null,"②シルバー","おめでとう！"]
[null,null,"会員募集",null,"会員募集",null,"締切",null,"クーポン画面",null,"消費完了","ゴールド会員になったよ！"]
["12ヶ月12回",{"$nulls":9},"2回目来店回数"]
["ループ",null,"s27",null,"s27ループ制限リセット"]
[null,null,"②シルバー"]
[null,null,"会員募集待機"]
[]
[{"$nulls":6},"s35",null,"tk7",null,"s9"]
["３回目以降\n利用",{"$nulls":5},"③ゴールド",null,"③ゴールド",null,"③ゴールド"]
[{"$nulls":6},"締切",null,"クーポン画面",null,"消費完了"]
[null,null,"s23",null,"cp8","s24","シルバーチケット③復活","tk8","ゴールドチケット③復活","s25"]
[null,null,"③シルバー",null,"③シルバー",null,"③シルバー",null,"③シルバー",null,"③シルバー","おめでとう！"]
[null,null,"会員募集",null,"会員募集",null,"締切",null,"クーポン画面",null,"消費完了","ゴールド会員になったよ！"]
["12ヶ月12回",{"$nulls":9},"3回目来店回数"]
["ループ",null,"s28",null,"s28ループ制限リセット",null,"※シナリオ移動時に、▼実行条件・オプション設定▼から「□チケットを復活させる」で、配布しようとしているクーポンの利用を復活させること。"]
[null,null,"③シルバー"]
[null,null,"会員募集待機"]

{"sheet":"クーポン追加A4ビラ(汎用)","index":18,"n_rows":27,"n_cols":146,"rows_kept":27}
{"$rows_empty":26}
[{"$nulls":145},"ぷれ"]

{"sheet":"クーポン追加A4ビラ(赤)","index":19,"n_rows":27,"n_cols":146,"rows_kept":27}
{"$rows_empty":26}
[{"$nulls":145},"ぷれ"]

{"sheet":"コンテンツ締切日","index":20,"n_rows":11,"n_cols":5,"rows_kept":11,"merged":[[2,1,3,4],[10,1,10,3]]}
[]
[]
[null,"コンテンツ配布順と締切日に関して"]
[]
[null,"コンテンツ","動画だと","文字だと","シナリオ"]
[null,"1番目(最初は必ずこれ)","15分以下","6,000文字以下","２日締切+先頭に戻す[11s]"]
[null,"2番目(オススメ！)","30分以下","12,000文字以下","２日締切+先頭に戻す[11s]\n※7日締切でも良い"]
[null,"3番目(特殊)","60分以下","24,000文字以下","７日締切+先頭に戻す[17s]"]
[null,"4番目～(非推奨)　　　 .","120分以下","50,000文字以下","７日締切+先頭に戻す[17s]"]
[null,"無料相談・セールス・体験等の「オファー」","60分以下","24,000文字以下","７日「セールス」+先頭に[17s]"]
[null,"予約などの(2分以上)7.5分以下で済むアクションの締切",null,null,"１日締切+先頭に戻す[10s]"]

{"sheet":"シナリオ設計ひな形","index":21,"n_rows":32,"n_cols":6,"rows_kept":32}
[]
[null,null,"シナリオ名","プロダクトロンチ基本[28s]",{"$f":"LEN(D2)","v":15},"文字"]
[]
[null,"ステップ","時間","タイトル","内容"]
[null,1,"0分後","[コンテンツ１]自己紹介＆プレゼントの予告(350文字まで)"]
[null,2,"1分後","[コンテンツ１]プレゼントです"]
[null,3,"1時間後","[コンテンツ１]今後のプレゼントの送信計画"]
[null,4,"1日後8時半","[コンテンツ１]本日終了"]
[null,5,"1日後20時","[コンテンツ１]あと４時間"]
[null,6,"2日後17時","[コンテンツ２]プレゼント２を配信します"]
[null,7,"3日後17時","[コンテンツ２]何故、●●なのか？"]
[null,8,"4日後8時半","[コンテンツ２]本日終了"]
[null,9,"4日後20時","[コンテンツ２]あと４時間"]
[null,10,"5日後17時","[コンテンツ３]プレゼント３を配信します"]
[null,11,"6日後17時","[コンテンツ３]結果の出る人の法則"]
[null,12,"7日後8時半","[コンテンツ３]本日終了"]
[null,13,"7日後20時","[コンテンツ３]あと４時間"]
[null,14,"8日後17時","[オファー]オファー開始しました"]
[null,15,"9日後17時","[オファー]商品の概要まとめと、申込み方法、プレゼントを見るメリットなどのまとめ"]
[null,16,"10日目17時","[オファー]お客様の声など"]
[null,17,"11日目17時","[オファー]リスク０性の説明"]
[null,18,"12日目17時","[オファー]Q&A"]
[null,19,"13日目17時","[オファー]後押し"]
[null,20,"14日目8時半","[オファー]明日終了"]
[null,21,"14日目20時","[オファー]明日終了"]
[null,22,"15日目8時半","[オファー]本日終了"]
[null,23,"15日目20時","[オファー]本日終了　あと４時間"]
[null,24,"15日目22時","[オファー]本日終了　あと２時間"]
[null,25,"15日目23時","[オファー]本日終了　あと１時間"]
[null,26,"17日目17時","[先頭に戻す]"]
[null,27,"19日目11時","[先頭に戻す]"]
[null,28,"19日目22時","[先頭に戻す]"]

{"sheet":"コンテンツ配布戦略シート","index":22,"n_rows":14,"n_cols":14,"rows_kept":14,"merged":[[0,0,0,11]]}
["○○事業：コンテンツ配布戦略"]
["動画番号","シナリオ名","オファーするもの","長さ(MAX)","コンテンツページ名称","フォーム名称","完了ページ名称","内容","コンテンツタイトル","長さ(現実)","進捗目標","累計目標","進捗結果","累計結果"]
[0,null,"ダイジェスト(LPに置く)","90秒","(0)LP",null,null,"なし","客単価15,000円、リピート率94％、お客様一人あたり21万円を売り上げる”超高利益率サロン”経営セミナー（ダイジェスト版）"]
[1,"①序章見てね","序章","15分","①・・・・","①・・・・",{"$f":"\"[完了]\"&E4","v":"[完了]①・・・・"},"LTVについて","なぜ高価格サロンを目指すと、利益が18倍になるのか？","13分",{"v":0.6,"d":"60%"},{"$f":"K4","v":{"v":0.6,"d":"60%"}},null,{"$f":"M4","v":{"v":0,"d":"0%"}}]
[2,"②１章見てね","１章","30分","②・・・・","②・・・・",{"$f":"\"[完了]\"&E5","v":"[完了]②・・・・"},"次回予約／フルコース戦略","失客率２分の１で、売上２倍戦略／\n客数を変えずに客単価＋５千円戦略","28分",{"v":0.7,"d":"70%"},{"$f":"L4*K5","v":{"v":0.42,"d":"42.00%"}},null,{"$f":"N4*M5","v":{"v":0,"d":"0.00%"}}]
[3,"③２章見てね","２章","30分","③・・・・","③・・・・","[完了]③・・・・","HP設計戦略","広告費ほぼ０で２ヶ月先まで予約いっぱい戦略","20分",{"v":0.8,"d":"80%"},{"$f":"L5*K6","v":{"v":0.336,"d":"33.60%"}},null,{"v":0,"d":"0.00%"}]
[4,"④３章見てね","３章","30分","④・・・・","④・・・・","[完了]④・・・・","人材育成と採用","労働時間２分の１で、収入２倍になる戦略","22分",{"v":0.8,"d":"80%"},{"v":0.26880000000000004,"d":"26.88%"},null,{"v":0,"d":"0.00%"}]
[5,"⑤４章見てね","４章(オファー)","60分","⑤・・・・","⑤・・・・","[完了]⑤・・・・","オンラインセミナーへのご招待","超高利益率サロン成功のための㊙ノウハウ公開！限定オンラインセミナーのご案内","40分",{"v":0.5,"d":"50%"},{"v":0.13440000000000002,"d":"13.44%"},null,{"v":0,"d":"0.00%"}]
[6,"⑥予約してね","予約",null,"⑥・・・・","⑥・・・・","[完了]⑥・・・・",{"$nulls":3},{"v":0.6,"d":"60%"},{"v":0.08064,"d":"8.06%"},null,{"v":0,"d":"0.00%"}]
[7,"⑦受講してね(予約者)","面談受講",null,"⑦・・・・","⑦・・・・",{"$f":"\"[完了]\"&E10","v":"[完了]⑦・・・・"},"続きのセミナー、相談に乗って、最後にオファー","超高利益率サロン成功のための㊙ノウハウ公開！限定オンラインセミナー",null,{"v":0.8,"d":"80%"},{"v":0.064512,"d":"6.45%"},null,{"v":0,"d":"0.00%"}]
[8,"⑧受講者(購入してね)","バックエンド",null,"⑧・・・・","⑧・・・・","[完了]⑧・・・・",{"$nulls":3},{"v":0.4,"d":"40%"},{"v":0.025804800000000003,"d":"2.58%"},null,{"v":0,"d":"0.00%"}]
[9,"⑨払ってね(購入希望者)","購入フォーム",{"$nulls":7},{"v":0.65,"d":"65%"},{"$f":"L11*K12","v":{"v":0.016773120000000002,"d":"1.68%"}},null,{"$f":"N11*M12","v":{"v":0,"d":"0.00%"}}]
[11,"⑩購入完了者","会員ページ",{"$nulls":7},{"v":1,"d":"100%"},{"v":0.016773120000000002,"d":"1.68%"},null,{"v":0,"d":"0.00%"}]
[12,"⑪・・・・",{"$nulls":8},{"v":1,"d":"100%"},{"v":0.016773120000000002,"d":"1.68%"},null,{"v":0,"d":"0.00%"}]

{"sheet":"記入例①(モラハラ)","index":23,"n_rows":16,"n_cols":14,"rows_kept":16,"merged":[[0,0,0,11]]}
["離婚しないモラハラ対策コーチング事業：コンテンツ配布戦略"]
["動画番号","シナリオ名","オファーするもの","長さ(MAX)","コンテンツページ名称","フォーム名称","完了ページ名称","内容","コンテンツタイトル","長さ(現実)","進捗目標","累計目標","進捗結果","累計結果"]
[1,"①記事１見てね","記事１","6000文字","①記事１見てね","①記事１見てね",null,"自己紹介",null,null,{"v":0.7,"d":"70%"},{"$f":"K3","v":{"v":0.7,"d":"70.0%"}},null,{"$f":"M3","v":{"v":0,"d":"0%"}}]
[2,"②記事２見てね","記事２","12000文字","②記事２見てね","②記事２見てね",null,"脱モラハラStep1",null,null,{"v":0.85,"d":"85%"},{"$f":"L3*K4","v":{"v":0.595,"d":"59.5%"}},null,{"$f":"N3*M4","v":{"v":0,"d":"0.00%"}}]
[3,"③記事３見てね","記事３","12000文字","③記事３見てね","③記事３見てね",null,"脱モラハラStep2",null,null,{"v":0.9,"d":"90%"},{"$f":"L4*K5","v":{"v":0.5355,"d":"53.6%"}},null,{"v":0,"d":"0.00%"}]
[4,"④記事４見てね","記事４","12000文字","④記事４見てね","④記事４見てね",null,"脱モラハラStep3",null,null,{"v":0.93,"d":"93%"},{"v":0.498015,"d":"49.8%"},null,{"v":0,"d":"0.00%"}]
[5,"⑤記事５見てね","記事５","12000文字","⑤記事５見てね","⑤記事５見てね",null,"脱モラハラStep4",null,null,{"v":0.97,"d":"97%"},{"v":0.48307455,"d":"48.3%"},null,{"v":0,"d":"0.00%"}]
[6,"⑥記事６見てね","記事６","12000文字","⑥記事６見てね","⑥記事６見てね",null,"脱モラハラStep5",null,null,{"v":0.97,"d":"97%"},{"v":0.46858231349999996,"d":"46.9%"},null,{"v":0,"d":"0.00%"}]
[7,"⑦記事７見てね","記事７","12000文字","⑦記事７見てね","⑦記事７見てね",null,"脱モラハラStep6",null,null,{"v":0.97,"d":"97%"},{"v":0.45452484409499994,"d":"45.5%"},null,{"v":0,"d":"0.00%"}]
[8,"⑧記事８見てね","記事８","12000文字","⑧記事８見てね","⑧記事８見てね",null,"脱モラハラStep7",null,null,{"v":0.97,"d":"97%"},{"v":0.44088909877214993,"d":"44.1%"},null,{"v":0,"d":"0.00%"}]
[9,"⑨記事９見てね","記事９","12000文字","⑨記事９見てね","⑨記事９見てね",null,"脱モラハラStep8",null,null,{"v":0.97,"d":"97%"},{"$f":"L10*K11","v":{"v":0.42766242580898545,"d":"42.8%"}},null,{"$f":"N10*M11","v":{"v":0,"d":"0.00%"}}]
[11,"⑩記事１０見てね","記事１０","12000文字","⑩記事１０見てね","⑩記事１０見てね",null,"脱モラハラStep9",null,null,{"v":0.97,"d":"97%"},{"v":0.4148325530347159,"d":"41.5%"},null,{"v":0,"d":"0.00%"}]
[12,"⑪記事１１見てね","記事１１","12000文字","⑪記事１１見てね","⑪記事１１見てね",null,"脱モラハラStep10",null,null,{"v":0.97,"d":"97%"},{"v":0.4023875764436744,"d":"40.2%"},null,{"v":0,"d":"0.00%"}]
[null,"⑫記事１２(オファー)見てね","無料相談","24000文字","⑫記事１２(オファー)見てね","⑫記事１２(オファー)見てね",null,"脱モラハラStep11",null,null,{"v":0.7,"d":"70%"},{"v":0.28167130351057207,"d":"28.2%"},null,{"v":0,"d":"0.00%"}]
[null,"⑬予約入れてね","予約フォーム",null,"⑬予約入れてね","⑬予約入れてね",{"$nulls":4},{"v":0.6,"d":"60%"},{"v":0.16900278210634323,"d":"16.9%"},null,{"v":0,"d":"0.00%"}]
[null,"⑭無料相談受けてね(リマインド)","リマインド／ZOOMリンク",null,"⑭無料相談受けてね(リマインド)","⑭無料相談受けてね(リマインド)",{"$nulls":4},{"v":0.85,"d":"85%"},{"$f":"L15*K16","v":{"v":0.14365236479039173,"d":"14.4%"}},null,{"v":0,"d":"0.00%"}]

{"sheet":"記入例②(ずーみーさん)","index":24,"n_rows":15,"n_cols":14,"rows_kept":15,"merged":[[0,0,0,11]]}
["ずーみーさん動画配布戦略"]
["動画番号","シナリオ名","オファーするもの","長さ(MAX)","コンテンツページ名称","フォーム名称","完了ページ名称","内容","名前変更後","長さ(現実)","進捗目標","累計目標","進捗結果","累計結果"]
[0,null,"ダイジェスト(LPに置く)","90秒","(0)LP",null,null,"なし","１PVあたり１０円以上の高単価ブログの作り方（ダイジェスト版）"]
[1,"①高単価ブログとは見てね","動画１","15分","①高単価ブログとは","①高単価ブログとは",{"$f":"\"[完了]\"&E4","v":"[完了]①高単価ブログとは"},"高単価ブログとは？","１PVあたり10円以上、1万PVでも月10万円稼ぐの高単価ブログの作り方","8分",{"v":0.65,"d":"65%"},{"$f":"K4","v":{"v":0.65,"d":"65%"}},null,{"$f":"M4","v":{"v":0,"d":"0%"}}]
[2,"②戦略ピラミッド見てね","動画２","30分","②戦略ピラミッド","②戦略ピラミッド",{"$f":"\"[完了]\"&E5","v":"[完了]②戦略ピラミッド"},"ブログ起業を成功に導く戦略ピラミッド","ブログで月10万円稼ぐ人が全員やっていて、稼げない人が全員できていないこと","15分",{"v":0.8,"d":"80%"},{"$f":"L4*K5","v":{"v":0.52,"d":"52.00%"}},null,{"$f":"N4*M5","v":{"v":0,"d":"0.00%"}}]
[3,"③７つの要素見てね","動画３","30分","③７つの要素","③７つの要素","[完了]③７つの要素","高単価ブログに必要な７つの要素","この７つを押さえたブログは1万PVで月10万円を継続的に稼げている","20分",{"v":0.9,"d":"90%"},{"$f":"L5*K6","v":{"v":0.468,"d":"46.80%"}},null,{"$f":"N5*M6","v":{"v":0,"d":"0.00%"}}]
[4,"④準備編前半見てね","動画４","30分","④準備編前半","④準備編前半","[完了]④準備編前半","新規高単価ブログの作り方（準備編前編）","初めてのブログでも失敗せず利益を出す！爆速成功マインド","22分",{"v":0.95,"d":"95%"},{"v":0.4446,"d":"44.46%"},null,{"v":0,"d":"0.00%"}]
[5,"⑤準備編後半見てね","動画５","30分","⑤準備編後半","⑤準備編後半","[完了]⑤準備編後半","新規高単価ブログの作り方（準備編後半）","初めてのブログでも失敗せず利益を出すために必要な全手順がこれだ！","23分",{"v":0.95,"d":"95%"},{"v":0.42236999999999997,"d":"42.24%"},null,{"v":0,"d":"0.00%"}]
[6,"⑥実行編前半見てね","動画６","30分","⑥実行編前半","⑥実行編前半","[完了]⑥実行編前半","新規高単価ブログの作り方(実行編前編）","１PVあたり10円以上稼ぐ人気ブログになるために必要な記事の書き方","28分",{"v":0.95,"d":"95%"},{"v":0.4012514999999999,"d":"40.13%"},null,{"v":0,"d":"0.00%"}]
[7,"⑦実行編後編見てね","動画７","30分","⑦実行編後半","⑦実行編後半",{"$f":"\"[完了]\"&E10","v":"[完了]⑦実行編後半"},"新規高単価ブログの作り方(実行編後半）","これを知って、１PVあたり10円のブログに挫折せず辿り着け！簡単これだけブログ分析","28分",{"v":0.95,"d":"95%"},{"v":0.3811889249999999,"d":"38.12%"},null,{"v":0,"d":"0.00%"}]
[8,"⑧お試ししてね","レター",null,"⑧レター","⑧お試し申し込み","[完了]⑧レター","セールスレターで１ヶ月間お試しさせる→ボタンのみ",null,null,{"v":0.3,"d":"30%"},{"v":0.11435667749999996,"d":"11.44%"},null,{"v":0,"d":"0.00%"}]
[9,"⑨お試し最初の１４日","有料会員",{"$nulls":7},{"v":0.3,"d":"30%"},{"v":0.03430700324999999,"d":"3.43%"},null,{"v":0,"d":"0.00%"}]
[10,"⑨'お試しなりませんか？",null,null,"⑨有料会員オファー","⑨有料会員申し込み","[完了]⑨有料会員オファー","お試し→最初のコンテンツ支払い",{"$nulls":3},{"v":0,"d":"0.00%"},null,{"$f":"M13","v":{"v":0,"d":"0%"}}]
[11,"⑩ベーシックコースシナリオ",{"$nulls":9},{"v":0,"d":"0.00%"},null,{"$f":"N13*M14","v":{"v":0,"d":"0.00%"}}]
[12,"⑪フルサポートコースシナリオ",{"$nulls":9},{"v":0,"d":"0.00%"},null,{"$f":"N14*M15","v":{"v":0,"d":"0.00%"}}]